{"text_format":"1","workbook":"xlsx","n_sheets":4,"sheets":["ورقة1","ترحيل مصروفات","مصروفات","MyDate"],"not_rendered":{"charts":0,"images":0,"macros":1,"external_links":0,"defined_names":0,"comments":0,"pivot_tables":0},"unopened":[],"bounds":{"document_bytes":16777216,"sheet_cells":100000,"rows_first":2000,"rows_last":500,"rows_between":2000,"halvings":0,"cell_chars":16384,"cell_head_chars":4096},"cells_cut":0,"cells_raw":0,"read":"whole","date_system":"1900"}

{"sheet":"ورقة1","index":0,"n_rows":17,"n_cols":257,"rows_kept":17,"cut":false,"hidden":false,"merged":[]}
[null,null,null,null,null,null,null,null,null,null,null,null,null,null,null,null,null,null,null,null,null,null,null,null,null,null,null,null,null,null,null,null,null,null,null,null,null,null,null,null,null,null,null,null,null,null,null,null,null,null,null,null,null,null,null,null,null,null,null,null,null,null,null,null,null,null,null,null,null,null,null,null,null,null,null,null,null,null,null,null,null,null,null,null,null,null,null,null,null,null,null,null,null,null,null,null,null,null,null,null,null,null,null,null,null,null,null,null,null,null,null,null,null,null,null,null,null,null,null,null,null,null,null,null,null,null,null,null,null,null,null,null,null,null,null,null,null,null,null,null,null,null,null,null,null,null,null,null,null,null,null,null,null,null,null,null,null,null,null,null,null,null,null,null,null,null,null,null,null,null,null,null,null,null,null,null,null,null,null,null,null,null,null,null,null,null,null,null,null,null,null,null,null,null,null,null,null,null,null,null,null,null,null,null,null,null,null,null,null,null,null,null,null,null,null,null,null,null,null,null,null,null,null,null,null,null,null,null,null,null,null,null,null,null,null,null,null,null,null,null,null,null,null,null,null,null,null,null,null,null,null,null,null,null,null,null,"الدعم الفني"]
[null,"اسم المورد","التاريخ","رقم الاذن","الجهة"]
[]
[null,null,null,null,null,"ادخال مصروفات"]
[]
[null,"التاريخ","اسم المورد","بند المصروف","بيان المصروف","الجهه","الكمية","السعر","خصم","القيمة","الاذن","ملاحظات"]
[null,{"$f":"IF(D7=\"\",\"\",$C$3)","v":""},{"$f":"IF(D7=\"\",\"\",$B$3)","v":""},null,null,{"$f":"IF(D7=\"\",\"\",$E$3)","v":""},null,null,null,{"$f":"IF(D7=\"\",\"\",(G7*H7)-I7)","v":""},{"$f":"IF(D7=\"\",\"\",$D$3)","v":""}]
[null,"",{"$f":"IF(D8=\"\",\"\",$B$3)","v":""},null,null,{"$f":"IF(D8=\"\",\"\",$E$3)","v":""},null,null,null,{"$f":"IF(D8=\"\",\"\",(P8*R8)-T8)","v":""},{"$f":"IF(D8=\"\",\"\",$D$3)","v":""}]
[null,"",{"$f":"IF(D9=\"\",\"\",$B$3)","v":""},null,null,"",null,null,null,"",""]
[null,"","",null,null,"",null,null,null,"",""]
[null,"","",null,null,"",null,null,null,"",""]
[null,"","",null,null,"",null,null,null,"",""]
[null,"","",null,null,"",null,null,null,"",""]
[null,"","",null,null,"",null,null,null,"",""]
[null,"","",null,null,"",null,null,null,"",""]
[null,"","",null,null,"",null,null,null,"",""]
[null,"","",null,null,"",null,null,null,"",""]

{"sheet":"ترحيل مصروفات","index":1,"n_rows":17,"n_cols":25,"rows_kept":17,"cut":false,"hidden":false,"merged":[[5,3,5,4],[5,5,5,13],[5,14,5,15],[13,5,13,13],[5,16,5,17],[12,3,12,4],[8,5,8,13],[9,5,9,13],[10,5,10,13],[11,5,11,13],[12,5,12,13],[13,3,13,4],[8,16,8,17],[10,14,10,15],[10,16,10,17],[12,14,12,15],[5,18,5,19],[5,20,5,22],[5,24,5,27],[6,5,6,13],[7,5,7,13],[6,16,6,17],[6,18,6,19],[6,20,6,22],[6,24,6,27],[7,16,7,17],[7,18,7,19],[7,20,7,22],[7,24,7,27],[14,3,14,4],[15,3,15,4],[16,3,16,4],[6,14,6,15],[7,14,7,15],[9,14,9,15],[14,5,14,13],[15,5,15,13],[16,5,16,13],[6,3,6,4],[7,3,7,4],[8,3,8,4],[9,3,9,4],[10,3,10,4],[11,3,11,4],[8,14,8,15],[8,18,8,19],[8,20,8,22],[8,24,8,27],[9,16,9,17],[9,18,9,19],[9,20,9,22],[9,24,9,27],[10,18,10,19],[10,20,10,22],[10,24,10,27],[11,14,11,15],[11,16,11,17],[11,18,11,19],[11,20,11,22],[11,24,11,27],[12,16,12,17],[12,18,12,19],[12,20,12,22],[12,24,12,27],[13,14,13,15],[13,16,13,17],[13,18,13,19],[13,20,13,22],[13,24,13,27],[14,14,14,15],[14,16,14,17],[14,18,14,19],[14,20,14,22],[14,24,14,27],[15,14,15,15],[15,16,15,17],[15,18,15,19],[15,20,15,22],[15,24,15,27],[16,14,16,15],[16,16,16,17],[16,18,16,19],[16,20,16,22],[16,24,16,27],[1,11,2,12],[1,9,2,10],[1,4,2,7],[3,5,3,12],[4,5,4,22],[3,3,3,4],[4,3,4,4]]}
[]
[null,null,null,null,"ادخال مصروفات",null,null,null,null,"رقم الاذن",null,50]
[]
[null,null,null,"التاريخ",null,"2020-02-05"]
[null,null,null,"اسم المورد",null,"محمد اشرف"]
[null,"التاريخ","اسم المورد","بند المصروف",null,"بيان المصروف",null,null,null,null,null,null,null,null,"الكمية",null,"السعر",null,"خصم",null,"القيمة",null,null,"الاذن","ملاحظات"]
[null,{"$f":"IF(D7=\"\",\"\",$F$4)","v":"2020-02-05"},{"$f":"IF(D7=\"\",\"\",$F$5)","v":"محمد اشرف"},"صيانة",null,"صيانة كلارك",null,null,null,null,null,null,null,null,50,null,12,null,30,null,{"$f":"IF(D7=\"\",\"\",(O7*Q7)-S7)","v":570},null,null,{"$f":"IF(D7=\"\",\"\",$L$2)","v":50}]
[null,{"$f":"IF(D8=\"\",\"\",$F$4)","v":"2020-02-05"},{"$f":"IF(D8=\"\",\"\",$F$5)","v":"محمد اشرف"},"تسويق",null,"مشوار القاهرة",null,null,null,null,null,null,null,null,100,null,10,null,10,null,{"$f":"IF(D8=\"\",\"\",(O8*Q8)-S8)","v":990},null,null,{"$f":"IF(D8=\"\",\"\",$L$2)","v":50}]
[null,"","",null,null,null,null,null,null,null,null,null,null,null,null,null,null,null,null,null,"",null,null,""]
[null,{"$f":"IF(D10=\"\",\"\",$F$4)","v":""},"",null,null,null,null,null,null,null,null,null,null,null,null,null,null,null,null,null,"",null,null,""]
[null,"","",null,null,null,null,null,null,null,null,null,null,null,null,null,null,null,null,null,"",null,null,""]
[null,"","",null,null,null,null,null,null,null,null,null,null,null,null,null,null,null,null,null,"",null,null,""]
[null,"","",null,null,null,null,null,null,null,null,null,null,null,null,null,null,null,null,null,"",null,null,""]
[null,"","",null,null,null,null,null,null,null,null,null,null,null,null,null,null,null,null,null,"",null,null,""]
[null,"","",null,null,null,null,null,null,null,null,null,null,null,null,null,null,null,null,null,"",null,null,""]
[null,"","",null,null,null,null,null,null,null,null,null,null,null,null,null,null,null,null,null,"",null,null,""]
[null,"","",null,null,null,null,null,null,null,null,null,null,null,null,null,null,null,null,null,"",null,null,""]

{"sheet":"مصروفات","index":2,"n_rows":28,"n_cols":11,"rows_kept":28,"cut":false,"hidden":false,"merged":[[0,1,2,4]]}
[null,"بيانات مصروفات"]
[]
[]
["التاريخ","اسم المورد","بند المصروف","بيان المصروف","الجهه","الكمية","السعر","خصم","القيمة","الاذن","ملاحظات"]
["2020-01-24","hou","a","b","sohaj",100,10,50,950,1,"d"]
[]
[]
[]
[]
[]
[]
[]
[]
[]
[]
[]
[]
[]
[]
[null,"",""]
[null,"",""]
[null,"",""]
[null,"",""]
[null,"",""]
[null,"",""]
[null,"",""]
[null,"",""]
[null,"",""]

{"sheet":"MyDate","index":3,"n_rows":8,"n_cols":15,"rows_kept":8,"cut":false,"hidden":false,"merged":[]}
[]
[]
["اسم المستخدم","الباسورد","اخر مستخدم","صلاحية اضافة مستخدم","ترحيل مصروفات","مصروفات","MyDate"]
["الدعم الفني",1234,"الدعم الفني  2020/01/18  13:44","مشاهدة وتعديل","مشاهدة وتعديل","مشاهدة وتعديل","مشاهدة وتعديل","مشاهدة وتعديل","مشاهدة وتعديل","مشاهدة وتعديل","مشاهدة وتعديل","مشاهدة وتعديل","مشاهدة وتعديل","مشاهدة وتعديل","مشاهدة وتعديل"]
["admin",1234,"الدعم الفني  2020/01/18  14:02","مخفي","مشاهدة فقط","مخفي","مخفي","مخفي","مخفي","مخفي","مشاهدة فقط","مشاهدة وتعديل","مخفي"]
[null,null,"الدعم الفني  2020/01/19  12:55"]
[null,null,"الدعم الفني  2020/01/24  16:39"]
[null,null,"الدعم الفني  2020/01/24  16:46"]